bitfinex/quotes_SOLUSD_20250514
["timestamp","ask_amount","ask_price","bid_price","bid_amount"]
[1747234335575,19.29090241,177.44,177.4,21.9]
[1747234335780,5.63380193,177.51,177.43,19.29090241]
[1747234335966,19.29090241,177.57,177.5,19.29090241]
[1747234336160,18.64964886,177.61,177.52,19.29090241]
[1747234336373,18.64964886,177.61,177.53,19.29090241]
[1747234336582,19.29090241,177.56,177.49,21.92]
[1747234336766,19.29090241,177.56,177.51,19.29090241]
[1747234336963,19.29090241,177.56,177.49,21.92]
[1747234337163,26.0,177.54,177.47,19.29090241]
[1747234337374,26.0,177.54,177.46,21.98]
[1747234337579,31.63189208,177.57,177.53,19.29090241]
[1747234337770,31.63189208,177.57,177.48,19.29090241]
[1747234337972,31.63189208,177.57,177.46,23.10673059]
[1747234338175,50.92279449,177.57,177.46,21.98]
[1747234338483,19.29090241,177.56,177.51,19.29090241]
[1747234338670,19.29090241,177.54,177.44,22.64611159]
[1747234338851,19.29090241,177.54,177.49,19.29090241]
[1747234339054,31.63189208,177.57,177.52,19.29090241]
[1747234339253,50.92279449,177.57,177.52,19.29090241]
[1747234339462,19.29090241,177.56,177.51,19.29090241]
[1747234339671,19.29090241,177.55,177.46,5.63507269]
[1747234339906,19.29090241,177.56,177.51,19.29090241]
[1747234340191,19.29090241,177.54,177.49,19.29090241]
[1747234340486,31.63189208,177.57,177.46,5.63507269]
[1747234340698,18.64964886,177.53,177.44,1.5102]
[1747234340861,19.29090241,177.5,177.46,19.29090241]
[1747234341062,5.6340525,177.5,177.46,19.29090241]
[1747234341255,24.92495491,177.5,177.46,19.29090241]
[1747234341463,19.29090241,177.49,177.45,22.2]
[1747234341679,5.6340525,177.5,177.45,41.49090241]
[1747234341680,138.0,177.48,177.45,41.49090241]
[1747234341983,138.0,177.48,177.47,19.29090241]
[1747234344979,138.0,177.48,177.45,22.2]
[1747234345286,138.0,177.48,177.47,19.29090241]
[1747234346598,143.63443768,177.48,177.47,19.29090241]
[1747234346785,143.63443768,177.48,177.45,22.18]
[1747234346968,138.0,177.48,177.45,22.18]
[1747234347165,138.0,177.48,177.47,19.29090241]
[1747234348210,138.0,177.48,177.47,24.92565757]
[1747234348503,138.0,177.48,177.47,44.21655998]
[1747234348788,138.0,177.52,177.47,44.21655998]
[1747234348989,138.0,177.52,177.51,19.29090241]
[1747234350158,143.63316809,177.52,177.45,22.22]
[1747234350374,138.0,177.51,177.45,22.22]
[1747234350586,138.0,177.51,177.45,27.85528508]
[1747234350873,138.0,177.51,177.5,19.29090241]
[1747234352506,143.63348543,177.51,177.45,27.8553387]
[1747234352791,143.63348543,177.51,177.5,19.29090241]
[1747234353558,138.0,177.51,177.5,19.29090241]
[1747234356593,138.0,177.51,177.5,46.44470522]
[1747234356794,138.0,177.51,177.5,40.81090241]
[1747234358069,138.0,177.51,177.5,19.29090241]
[1747234358268,138.0,177.51,177.5,46.98470522]
[1747234358570,138.0,177.51,177.5,41.35090241]
[1747234361209,138.0,177.51,177.5,46.98470522]
[1747234362300,138.0,177.51,177.5,41.35090241]
[1747234362802,138.0,177.51,177.5,46.98470522]
[1747234363109,138.0,177.55,177.5,53.04150522]
[1747234363281,138.0,177.55,177.5,33.75060281]
[1747234363480,138.0,177.55,177.54,19.29090241]
[1747234364518,138.0,177.55,177.51,7.20518582]
[1747234364682,138.0,177.55,177.5,28.1168]
[1747234364882,138.0,177.55,177.48,19.43306398]
[1747234364883,138.0,177.54,177.47,1.5344]
[1747234365081,138.0,177.54,177.49,41.39090241]
[1747234365282,138.0,177.54,177.5,19.29090241]
[1747234365489,138.0,177.54,177.45,6.0722]
[1747234365490,19.29090241,177.52,177.41,7.6066]
[1747234365807,138.0,177.53,177.45,19.29090241]
[1747234365808,19.29090241,177.5,177.45,19.29090241]
[1747234366016,138.0,177.49,177.46,19.29090241]
[1747234366179,143.63421197,177.49,177.46,19.29090241]
[1747234366377,143.63421197,177.49,177.45,19.29090241]
[1747234366581,19.29090241,177.47,177.42,22.14]
[1747234366806,19.29090241,177.47,177.42,63.53090241]
[1747234367014,157.29090241,177.48,177.43,19.29090241]
[1747234367391,19.29090241,177.46,177.42,44.24]
[1747234367615,19.29090241,177.47,177.42,63.53090241]
[1747234368323,5.63507269,177.46,177.42,63.53090241]
[1747234368889,5.63507269,177.46,177.43,19.29090241]
[1747234369116,5.63507269,177.46,177.42,63.53090241]
[1747234371137,5.63507269,177.46,177.44,19.29090241]
[1747234372701,5.63475516,177.47,177.44,19.29090241]
[1747234372896,5.63475516,177.47,177.45,19.29090241]
[1747234374518,138.0,177.48,177.46,19.29090241]
[1747234374519,143.63452452,177.48,177.46,19.29090241]
[1747234374834,138.0,177.47,177.42,44.24]
[1747234375688,138.0,177.47,177.42,49.87627278]
[1747234375892,138.0,177.47,177.46,19.29090241]
[1747234376589,138.0,177.47,177.42,49.87627278]
[1747234376795,138.0,177.47,177.46,19.29090241]
[1747234380898,138.0,177.47,177.43,5.63600226]
[1747234381214,138.0,177.47,177.46,19.29090241]
[1747234381628,138.0,177.46,177.45,19.29090241]
[1747234385610,138.0,177.46,177.43,21.82]
[1747234385815,138.0,177.46,177.45,19.29090241]
[1747234387135,138.0,177.46,177.45,24.92629266]
[1747234387436,138.0,177.46,177.45,52.39839507]
[1747234387599,138.0,177.53,177.45,52.39839507]
[1747234387798,138.0,177.52,177.48,19.29090241]
[1747234388001,138.0,177.52,177.51,19.29090241]
[1747234388855,138.0,177.52,177.49,21.74]
[1747234389154,138.0,177.52,177.51,19.29090241]
[1747234391962,138.0,177.52,177.51,24.92438784]
[1747234392338,138.0,177.58,177.51,24.92438784]
[1747234392553,138.0,177.58,177.57,19.29090241]
[1747234393064,138.0,177.58,177.51,5.63348543]
[1747234393235,138.0,177.57,177.55,19.29090241]
[1747234393429,138.0,177.56,177.55,19.29090241]
[1747234393635,138.0,177.56,177.54,19.29090241]
[1747234394462,138.0,177.56,177.55,19.29090241]
[1747234394662,143.63189907,177.56,177.55,19.29090241]
[1747234395362,143.63189907,177.56,177.54,19.29090241]
[1747234396063,138.0,177.56,177.5,31.63379331]
[1747234396287,138.0,177.55,177.5,31.63379331]
[1747234397375,138.0,177.55,177.54,19.29090241]
[1747234400461,138.0,177.54,177.47,5.63475516]
[1747234400656,138.0,177.54,177.51,19.29090241]
[1747234400850,138.0,177.53,177.52,19.29090241]
[1747234401656,143.63285078,177.53,177.51,19.29090241]
[1747234402171,138.0,177.53,177.52,19.29090241]
[1747234408593,138.0,177.53,177.5,21.3]
[1747234408891,138.0,177.53,177.52,19.29090241]
[1747234409272,138.0,177.53,177.52,11.99115864]
[1747234409780,143.63285078,177.53,177.52,11.99115864]
[1747234409998,138.0,177.53,177.5,21.3]
[1747234410173,138.0,177.53,177.52,11.99115864]
[1747234411571,138.0,177.53,177.5,21.3]
[1747234411777,138.0,177.53,177.52,11.99115864]
[1747234414185,143.63285078,177.53,177.46,5.63485359]
[1747234414377,138.0,177.52,177.51,11.99115864]
[1747234415015,138.0,177.52,177.47,21.26]
[1747234415191,138.0,177.51,177.49,11.99115864]
[1747234415991,138.0,177.51,177.5,11.99115864]
[1747234416700,143.63366297,177.51,177.47,21.26]
[1747234417204,143.63366297,177.51,177.5,11.99115864]
[1747234418471,138.0,177.51,177.5,11.99115864]
[1747234420289,138.0,177.51,177.47,21.26]
[1747234420495,5.63348543,177.51,177.46,21.58]
[1747234420721,5.63285078,177.53,177.47,21.26]
[1747234420923,5.63285078,177.53,177.49,11.99115864]
[1747234421697,5.63285078,177.53,177.47,21.26]
[1747234421698,5.63285078,177.53,177.52,11.99115864]
[1747234421896,5.63285078,177.53,177.51,11.99115864]
[1747234422136,5.63189907,177.56,177.52,11.99115864]
[1747234422300,5.63094768,177.59,177.55,11.99115864]
[1747234422618,31.69947554,177.59,177.54,11.99115864]
[1747234422818,30.6408075,177.58,177.52,11.99115864]
[1747234423733,30.6408075,177.58,177.53,11.99115864]
[1747234424630,5.63158191,177.57,177.53,11.99115864]
[1747234427505,5.63158191,177.57,177.54,11.99115864]
[1747234427712,138.0,177.56,177.54,11.99115864]
[1747234428316,175.99115864,177.55,177.45,7.6967]
[1747234428521,17.62432673,177.52,177.47,11.99115864]
[1747234428722,138.0,177.51,177.48,11.99115864]
[1747234428924,138.0,177.51,177.5,11.99115864]
[1747234433409,138.0,177.51,177.5,17.62496145]
[1747234434017,138.0,177.51,177.5,11.99115864]
[1747234434728,138.0,177.51,177.5,17.62496145]
[1747234435446,138.0,177.51,177.5,11.99115864]
[1747234436246,138.0,177.51,177.5,33.25115864]
[1747234437649,138.0,177.51,177.5,38.88496145]
[1747234437948,138.0,177.51,177.5,33.25115864]
[1747234438749,138.0,177.51,177.5,21.26]
[1747234438938,138.0,177.51,177.5,33.25115864]
[1747234439344,138.0,177.51,177.5,38.88496145]
[1747234439648,138.0,177.55,177.5,38.88496145]
[1747234439835,138.0,177.55,177.54,11.99115864]
[1747234440030,143.63221627,177.55,177.54,11.99115864]
[1747234440218,143.63221627,177.55,177.5,21.26]
[1747234440425,143.63221627,177.55,177.49,5.63389049]
[1747234440623,143.63221627,177.55,177.52,11.99115864]
[1747234441651,11.99115864,177.53,177.45,1.5893]
[1747234441837,149.99115864,177.54,177.48,11.99115864]
[1747234442157,149.99115864,177.54,177.47,21.26]
[1747234442453,151.54185864,177.54,177.48,11.99115864]
[1747234442753,151.54185864,177.54,177.49,11.99115864]
[1747234442955,138.0,177.53,177.5,11.99115864]
[1747234443954,5.63316809,177.52,177.49,11.99115864]
[1747234444134,11.99115864,177.5,177.41,1.6256]
[1747234444341,11.99115864,177.48,177.44,11.99115864]
[1747234444727,149.99115864,177.49,177.44,11.99115864]
[1747234444931,138.0,177.49,177.47,11.99115864]
[1747234445231,138.0,177.48,177.47,11.99115864]
[1747234446052,143.63443768,177.48,177.47,11.99115864]
[1747234446651,138.0,177.48,177.47,11.99115864]
[1747234447575,138.0,177.48,177.45,42.5]
[1747234447753,138.0,177.48,177.47,11.99115864]
[1747234447956,138.0,177.48,177.45,42.5]
[1747234448145,138.0,177.48,177.47,11.99115864]
[1747234448729,143.63450699,177.48,177.47,11.99115864]
[1747234448963,143.63450699,177.48,177.45,42.5]
[1747234449267,138.0,177.48,177.47,11.99115864]
[1747234449588,138.0,177.48,177.45,42.5]
[1747234449763,138.0,177.48,177.47,11.99115864]
[1747234450764,143.63453842,177.48,177.47,11.99115864]
[1747234450966,138.0,177.48,177.47,11.99115864]
[1747234454979,138.0,177.48,177.47,17.6259138]
[1747234455988,138.0,177.48,177.47,11.99115864]
[1747234457190,138.0,177.48,177.47,17.6259138]
[1747234457394,138.0,177.48,177.47,29.61707244]
[1747234458191,138.0,177.48,177.47,17.6259138]
[1747234458892,138.0,177.48,177.47,29.61707244]
[1747234459086,138.0,177.48,177.47,17.6259138]
[1747234460680,5.63293498,177.53,177.47,17.6259138]
[1747234460681,5.6332143,177.52,177.47,17.6259138]
[1747234460878,5.6332143,177.52,177.51,11.99115864]
[1747234462186,138.0,177.51,177.42,21.24]
[1747234462385,11.99115864,177.5,177.44,11.99115864]
[1747234462593,11.99115864,177.49,177.44,11.99115864]
[1747234462774,11.99115864,177.49,177.42,21.24]
[1747234463091,11.99115864,177.49,177.44,11.99115864]
[1747234463267,5.63443768,177.48,177.44,11.99115864]
[1747234463469,19.72053188,177.48,177.44,11.99115864]
[1747234465505,5.63443768,177.48,177.44,11.99115864]
[1747234465716,5.63443768,177.48,177.45,11.99115864]
[1747234466695,5.63443768,177.48,177.46,11.99115864]
[1747234466696,138.0,177.47,177.46,11.99115864]
[1747234467704,138.0,177.47,177.46,17.62623133]
[1747234469728,138.0,177.47,177.46,11.99115864]
[1747234469906,138.0,177.47,177.46,17.62623133]
[1747234470303,138.0,177.47,177.46,38.86623133]
[1747234470617,138.0,177.47,177.46,33.23115864]
[1747234472931,138.0,177.46,177.45,21.22]
[1747234473095,143.63507269,177.46,177.45,21.22]
[1747234473611,143.63507269,177.46,177.45,33.21115864]
[1747234474831,138.0,177.46,177.45,33.21115864]
[1747234476435,143.63378658,177.51,177.45,33.21115864]
[1747234476721,138.0,177.5,177.48,11.99115864]
[1747234477101,138.0,177.5,177.49,11.99115864]
[1747234477620,143.63380281,177.5,177.48,11.99115864]
[1747234477830,138.0,177.5,177.49,11.99115864]
[1747234479358,143.63380281,177.5,177.49,11.99115864]
[1747234479955,143.63380281,177.5,177.45,21.22]
[1747234480163,138.0,177.49,177.47,11.99115864]
[1747234480469,138.0,177.49,177.48,11.99115864]
[1747234481459,138.0,177.49,177.45,21.22]
[1747234481668,143.63419078,177.49,177.48,11.99115864]
[1747234482536,138.0,177.49,177.48,11.99115864]
[1747234483261,138.0,177.49,177.48,33.21115864]
[1747234483650,143.63412023,177.49,177.48,21.22]
[1747234483859,143.63412023,177.49,177.48,33.21115864]
[1747234484953,138.0,177.49,177.48,33.21115864]
[1747234488280,138.0,177.54,177.48,50.83675496]
[1747234488586,138.0,177.53,177.52,11.99115864]
[1747234489959,143.63285078,177.53,177.52,11.99115864]
[1747234490259,143.63285078,177.53,177.51,11.99115864]
[1747234490987,143.63285078,177.53,177.48,21.22]
[1747234491171,143.63285078,177.53,177.5,11.99115864]
[1747234491172,138.0,177.52,177.5,11.99115864]
[1747234491683,138.0,177.52,177.51,11.99115864]
[1747234492876,138.0,177.52,177.48,21.22]
[1747234493082,5.63348543,177.51,177.48,11.99115864]
[1747234493387,138.0,177.5,177.47,11.99115864]
[1747234494082,143.63411441,177.5,177.47,11.99115864]
[1747234495287,143.63411441,177.5,177.45,42.4]
[1747234495484,143.63411441,177.5,177.47,11.99115864]
[1747234496493,143.63411441,177.5,177.48,11.99115864]
[1747234496677,138.0,177.49,177.48,11.99115864]
[1747234496994,138.0,177.49,177.47,11.99115864]
[1747234498684,143.63420928,177.49,177.47,11.99115864]
[1747234499585,143.63420928,177.49,177.46,11.99115864]
[1747234499795,143.63420928,177.49,177.45,33.19115864]
[1747234500587,138.0,177.48,177.45,21.2]
[1747234500904,138.0,177.48,177.47,11.99115864]
[1747234502203,138.0,177.52,177.47,11.99115864]
[1747234502427,138.0,177.52,177.51,11.99115864]
[1747234505326,138.0,177.52,177.51,11.99115864]
[1747234505826,138.0,177.52,177.51,21.18]
[1747234506010,138.0,177.52,177.51,33.17115864]
[1747234506407,143.63316809,177.52,177.51,33.17115864]
[1747234506610,138.0,177.52,177.51,33.17115864]
[1747234508532,138.0,177.52,177.51,21.18]
[1747234508829,143.63316809,177.52,177.51,21.18]
[1747234509040,138.0,177.52,177.51,33.17115864]
[1747234509245,138.0,177.52,177.51,21.18]
[1747234509450,138.0,177.52,177.51,33.17115864]
[1747234509637,143.63316809,177.52,177.5,11.99115864]
[1747234509947,143.63316809,177.52,177.49,21.2]
[1747234510144,143.63316809,177.52,177.49,33.19115864]
[1747234510522,138.0,177.51,177.47,11.99115864]
[1747234510719,149.99115864,177.5,177.45,33.15115864]
[1747234510923,11.99115864,177.49,177.44,11.99115864]
[1747234511118,149.99115864,177.48,177.43,11.99115864]
[1747234511339,11.99115864,177.47,177.41,21.2]
[1747234511523,11.99115864,177.47,177.42,11.99115864]
[1747234511847,11.99115864,177.46,177.41,33.19115864]
[1747234512059,11.99115864,177.46,177.34,6.3292]
[1747234512060,11.99115864,177.42,177.34,6.3292]
[1747234512225,149.99115864,177.41,177.36,11.99115864]
[1747234512425,5.63697857,177.4,177.37,11.99115864]
[1747234513324,17.62813721,177.4,177.35,33.15115864]
[1747234513524,149.99115864,177.39,177.31,14.45265284]
[1747234513824,149.99115864,177.39,177.34,11.99115864]
[1747234514145,138.0,177.38,177.32,21.16]
[1747234514326,138.0,177.37,177.34,11.99115864]
[1747234514523,138.0,177.37,177.32,21.16]
[1747234514524,149.99115864,177.36,177.32,21.16]
[1747234515453,149.99115864,177.36,177.32,33.15115864]
[1747234515745,11.99115864,177.35,177.3,11.99115864]
[1747234516252,149.99115864,177.36,177.31,11.99115864]
[1747234516654,138.0,177.36,177.32,11.99115864]
[1747234516953,138.0,177.36,177.34,11.99115864]
[1747234517169,138.0,177.36,177.35,11.99115864]
[1747234518076,138.0,177.36,177.34,11.99115864]
[1747234518446,138.0,177.36,177.31,5.63983982]
[1747234518649,138.0,177.36,177.33,11.99115864]
[1747234519080,138.0,177.36,177.32,11.99115864]
[1747234520045,138.0,177.36,177.29,21.2]
[1747234520046,155.62945499,177.36,177.29,21.2]
[1747234520259,11.99115864,177.35,177.3,11.99115864]
[1747234520694,11.99115864,177.35,177.29,21.2]
[1747234520992,11.99115864,177.33,177.28,11.99115864]
[1747234521197,11.99115864,177.34,177.29,11.99115864]
[1747234521356,138.0,177.35,177.32,11.99115864]
[1747234521554,138.0,177.34,177.32,11.99115864]
[1747234521782,138.0,177.34,177.33,11.99115864]
[1747234521981,138.0,177.34,177.32,11.99115864]
[1747234522164,138.0,177.34,177.31,11.99115864]
[1747234522681,138.0,177.34,177.27,26.80109871]
[1747234522682,143.63889171,177.34,177.3,11.99115864]
[1747234523675,143.63889171,177.34,177.24,47.16]
[1747234523676,149.99115864,177.33,177.25,239.8085]
[1747234523858,138.0,177.32,177.29,11.99115864]
[1747234524075,143.64008498,177.31,177.27,11.99115864]
[1747234526168,157.73968455,177.31,177.27,11.99115864]
[1747234526586,138.0,177.3,177.26,11.99115864]
[1747234526903,138.0,177.3,177.25,21.16]
[1747234526904,149.99115864,177.3,177.25,33.15115864]
[1747234527068,138.0,177.29,177.25,11.99115864]
[1747234527268,5.64079422,177.28,177.24,21.16]
[1747234527570,169.73393841,177.28,177.17,1.6044]
[1747234527887,138.0,177.27,177.23,11.99115864]
[1747234529067,138.0,177.27,177.24,11.99115864]
[1747234529398,5.64143066,177.26,177.24,11.99115864]
[1747234530084,5.64143066,177.26,177.22,21.16]
[1747234530398,5.64143066,177.26,177.23,11.99115864]
[1747234530577,19.74500732,177.26,177.22,11.99115864]
[1747234530770,11.99115864,177.25,177.21,11.99115864]
[1747234530970,138.0,177.24,177.2,11.99115864]
[1747234531170,138.0,177.23,177.2,11.99115864]
[1747234531398,5.64270398,177.22,177.18,21.16]
[1747234531613,5.64270398,177.22,177.2,11.99115864]
[1747234531985,143.64240731,177.23,177.21,11.99115864]
[1747234532184,138.0,177.23,177.22,11.99115864]
[1747234533494,143.6423856,177.23,177.18,42.3]
[1747234533909,143.6423856,177.23,177.22,11.99115864]
[1747234535822,138.0,177.23,177.22,11.99115864]
[1747234535998,143.6423856,177.23,177.22,11.99115864]
[1747234537502,138.0,177.23,177.22,11.99115864]
[1747234538322,143.6423856,177.23,177.22,11.99115864]
[1747234540223,143.6423856,177.23,177.2,11.99115864]
[1747234540424,149.99115864,177.22,177.18,21.16]
[1747234540627,149.99115864,177.21,177.14,211.02]
[1747234540825,11.99115864,177.21,177.16,11.99115864]
[1747234541033,11.99115864,177.19,177.12,21.18]
[1747234541334,138.0,177.18,177.14,11.99115864]
[1747234542231,5.64429643,177.17,177.14,11.99115864]
[1747234542432,143.64407673,177.18,177.16,11.99115864]
[1747234542622,138.0,177.17,177.13,26.78556809]
[1747234543006,143.64273564,177.22,177.13,26.78556809]
[1747234543528,138.0,177.22,177.13,40.89949571]
[1747234543724,138.0,177.21,177.14,26.0]
[1747234544049,138.0,177.21,177.2,11.99115864]
[1747234550133,138.0,177.21,177.2,38.75449949]
[1747234552267,138.0,177.21,177.2,33.11115864]
[1747234552840,138.0,177.21,177.2,38.75449949]
[1747234555462,138.0,177.21,177.2,33.11115864]
[1747234556449,138.0,177.21,177.2,11.99115864]
[1747234556759,138.0,177.26,177.2,29.62565813]
[1747234557065,138.0,177.26,177.25,11.99115864]
[1747234558338,65.54858292,177.34,177.25,22.22659799]
[1747234558339,43.64684636,177.33,177.25,22.22659799]
[1747234558671,43.64684636,177.33,177.32,11.99115864]
[1747234558869,43.64684636,177.33,177.26,43.7954]
[1747234559168,43.64684636,177.33,177.32,11.99115864]
[1747234560550,43.64684636,177.33,177.28,6.241]
[1747234560776,43.64684636,177.33,177.32,11.99115864]
[1747234562073,49.2860501,177.33,177.32,11.99115864]
[1747234562279,43.64684636,177.33,177.32,11.99115864]
[1747234563078,49.2860501,177.33,177.31,11.99115864]
[1747234563748,49.2860501,177.33,177.3,11.99115864]
[1747234564075,61.27720874,177.33,177.24,58.77327444]
[1747234564276,5.63983982,177.31,177.27,11.99115864]
[1747234564451,11.99115864,177.3,177.26,11.99115864]
[1747234564961,55.638005,177.29,177.25,21.08]
[1747234565173,55.638005,177.28,177.25,21.08]
[1747234565373,43.64684636,177.28,177.26,11.99115864]
[1747234565565,43.64684636,177.28,177.27,11.99115864]
[1747234568554,43.64684636,177.28,177.25,26.72164329]
[1747234568889,43.64684636,177.28,177.27,11.99115864]
[1747234569827,49.28764058,177.28,177.24,1.6165]
[1747234570001,49.28764058,177.28,177.25,11.99115864]
[1747234570383,49.28764058,177.28,177.21,11.99115864]
[1747234570610,43.64684636,177.27,177.22,21.06]
[1747234570811,43.64684636,177.27,177.24,11.99115864]
[1747234571113,43.64684636,177.27,177.25,11.99115864]
[1747234572420,49.28817857,177.27,177.2,1.5086]
[1747234572623,55.638005,177.26,177.19,27.4762]
[1747234572938,55.638005,177.26,177.21,11.99115864]
[1747234573286,43.64684636,177.26,177.25,11.99115864]
[1747234574804,43.64684636,177.26,177.25,17.63290758]
[1747234575818,43.64684636,177.26,177.25,11.99115864]
[1747234575997,43.64684636,177.26,177.23,5.64229738]
[1747234576198,43.64684636,177.26,177.25,11.99115864]
[1747234576724,43.64684636,177.26,177.23,11.99115864]
[1747234576906,43.64684636,177.26,177.24,11.99115864]
[1747234577226,49.28835051,177.26,177.24,11.99115864]
[1747234578018,49.28835051,177.26,177.2,5.64324159]
[1747234578212,49.28835051,177.26,177.22,11.99115864]
[1747234578810,55.638005,177.25,177.2,11.99115864]
[1747234579007,11.99115864,177.24,177.19,54.13115864]
[1747234579527,11.99115864,177.23,177.19,42.14]
[1747234580024,11.99115864,177.24,177.19,54.13115864]
[1747234580208,11.99115864,177.24,177.19,33.09115864]
[1747234580405,11.99115864,177.23,177.19,21.1]
[1747234580624,11.99115864,177.2,177.12,1.588]
[1747234580828,11.99115864,177.19,177.14,11.99115864]
[1747234581027,43.64684636,177.18,177.16,11.99115864]
[1747234581518,43.64684636,177.18,177.16,19.26242061]
[1747234581899,43.64684636,177.17,177.12,1.588]
[1747234582126,19.26242061,177.15,177.11,40.30242061]
[1747234582299,43.64684636,177.14,177.1,19.26242061]
[1747234582499,43.64684636,177.14,177.1,40.30242061]
[1747234582719,43.64684636,177.14,177.09,21.04]
[1747234582720,62.90926697,177.14,177.09,61.34242061]
[1747234582911,5.64557104,177.13,177.09,61.34242061]
[1747234583110,43.64684636,177.12,177.09,21.04]
[1747234583629,43.64684636,177.12,177.09,40.30242061]
[1747234583816,43.64684636,177.11,177.08,40.30242061]
[1747234584000,43.64684636,177.11,177.08,21.04]
[1747234584205,62.90926697,177.11,177.06,21.04]
[1747234584407,43.64684636,177.1,177.06,40.30242061]
[1747234584708,43.64684636,177.1,177.06,21.04]
[1747234584910,49.29371176,177.09,177.05,21.02]
[1747234585144,19.26242061,177.07,177.04,21.04]
[1747234585349,19.26242061,177.07,177.03,21.02]
[1747234585721,43.64684636,177.08,177.06,19.26242061]
[1747234585922,43.64684636,177.08,177.05,19.26242061]
[1747234587015,43.64684636,177.08,177.06,19.26242061]
[1747234587411,43.64684636,177.08,177.07,19.26242061]
[1747234589309,49.29401148,177.08,177.05,19.26242061]
[1747234589506,43.64684636,177.08,177.03,26.66864423]
[1747234589705,43.64684636,177.08,177.05,19.26242061]
[1747234589911,43.64684636,177.08,177.03,21.02]
[1747234590205,43.64684636,177.08,177.06,19.26242061]
[1747234590410,43.64684636,177.08,177.07,19.26242061]
[1747234591415,43.64684636,177.08,177.03,26.66862799]
[1747234591618,43.64684636,177.08,177.07,19.26242061]
[1747234593721,43.64684636,177.08,177.03,40.28242061]
[1747234594034,43.64684636,177.08,177.07,19.26242061]
[1747234594842,49.29408565,177.08,177.05,40.28242061]
[1747234595450,68.55650626,177.08,177.03,21.02]
[1747234595652,43.64684636,177.07,177.04,19.26242061]
[1747234595828,49.29433238,177.07,177.03,21.02]
[1747234596148,49.29433238,177.07,177.04,19.26242061]
[1747234596317,43.64684636,177.07,177.04,19.26242061]
[1747234596519,43.64684636,177.07,177.06,19.26242061]
[1747234597620,43.64684636,177.07,177.03,21.02]
[1747234597924,43.64684636,177.07,177.06,19.26242061]
[1747234599245,43.64684636,177.07,177.04,5.64840514]
[1747234599451,43.64684636,177.07,177.06,19.26242061]
[1747234599618,43.64684636,177.07,177.05,19.26242061]
[1747234601438,49.29439072,177.07,177.05,19.26242061]
[1747234601634,43.64684636,177.07,177.05,19.26242061]
[1747234602252,43.64684636,177.07,177.06,19.26242061]
[1747234605357,43.64684636,177.07,177.05,12.05330986]
[1747234606159,49.29438568,177.07,177.05,12.05330986]
[1747234606357,61.34769554,177.07,176.99,26.0]
[1747234606663,55.70015622,177.06,177.02,12.05330986]
[1747234607742,5.64812199,177.05,177.02,12.05330986]
[1747234608451,12.05330986,177.04,176.99,12.05330986]
[1747234608640,12.05330986,177.04,176.99,33.03330986]
[1747234609053,12.05330986,177.04,177.0,12.05330986]
[1747234609572,17.70143185,177.05,177.0,12.05330986]
[1747234611070,17.70143185,177.05,176.98,42.04]
[1747234611071,12.05330986,177.02,176.98,42.04]
[1747234611233,43.64684636,177.01,176.98,42.04]
[1747234611436,43.64684636,177.01,176.98,54.09330986]
[1747234611634,43.64684636,177.01,177.0,12.05330986]
[1747234612448,43.64684636,177.01,176.98,26.6302786]
[1747234612649,43.64684636,177.01,177.0,12.05330986]
[1747234614058,43.64684636,177.01,177.0,17.70302737]
[1747234614655,43.64684636,177.01,177.0,12.05330986]
[1747234615856,43.64684636,177.06,177.0,17.70302737]
[1747234616058,43.64684636,177.06,177.05,12.05330986]
[1747234616963,43.64684636,177.06,177.05,33.01330986]
[1747234619270,43.64684636,177.06,177.05,40.24244076]
[1747234619647,43.64684636,177.11,177.05,45.89056275]
[1747234619857,43.64684636,177.11,177.1,19.28244076]
[1747234620661,49.29305493,177.11,177.07,19.28244076]
[1747234620867,19.28244076,177.1,177.06,19.28244076]
[1747234621066,62.92928712,177.1,177.06,19.28244076]
[1747234621966,5.64684623,177.09,177.06,19.28244076]
[1747234623464,49.29344374,177.1,177.07,19.28244076]
[1747234624378,49.29344374,177.1,177.04,20.94]
[1747234624575,19.28244076,177.09,177.04,19.28244076]
[1747234624875,63.4097622,177.1,177.04,19.28244076]
[1747234625076,82.69220296,177.1,177.05,19.28244076]
[1747234625646,43.64684636,177.09,177.03,20.94]